bitfinex/quotes_ETHUSD_20250106
["timestamp","ask_amount","ask_price","bid_price","bid_amount"]
[1736198665442,5.34242422,3674.8,3674.0,0.15]
[1736198665860,2.72094,3675.3,3674.2,0.3981]
[1736198665861,3.8219,3675.3,3674.2,0.3981]
[1736198666055,2.72095,3675.2,3674.2,3.11973]
[1736198666362,0.25060526,3675.2,3674.2,0.3981]
[1736198666564,0.25060526,3675.2,3674.4,0.0075]
[1736198666767,0.25060526,3675.2,3674.4,2.72903]
[1736198667132,3.8219,3675.3,3674.4,2.72903]
[1736198667372,4.5115974,3675.3,3674.4,2.72903]
[1736198668047,1.5115974,3675.3,3674.4,2.72903]
[1736198668247,0.25079698,3675.2,3674.4,2.72903]
[1736198669035,3.8559121,3675.3,3674.4,2.72903]
[1736198669972,3.8559121,3675.3,3674.2,0.3981]
[1736198669973,3.5767721,3675.3,3674.3,0.565]
[1736198670149,0.25099975,3675.2,3674.3,0.565]
[1736198670347,3.0,3675.1,3674.4,0.191]
[1736198670547,3.0,3675.1,3674.2,0.3981]
[1736198670548,3.0,3674.9,3674.2,0.191]
[1736198670747,3.0,3674.6,3674.0,0.15]
[1736198671648,0.25099975,3674.5,3674.0,0.15]
[1736198672074,3.0,3674.3,3674.0,0.15]
[1736198672260,0.03401905,3674.4,3674.0,0.15]
[1736198672440,3.03402062,3674.5,3674.0,0.15]
[1736198672638,0.65773206,3674.4,3674.0,0.15]
[1736198672833,0.90907699,3674.4,3674.0,0.15]
[1736198673038,0.25134493,3674.4,3674.0,0.15]
[1736198673439,0.25134493,3674.3,3674.0,0.15]
[1736198674154,3.25134493,3674.3,3674.0,0.15]
[1736198674552,0.25134493,3674.2,3674.0,0.15]
[1736198675158,0.25169319,3674.1,3674.0,0.15]
[1736198675362,0.50303812,3674.1,3674.0,0.15]
[1736198675681,7.73813915,3674.1,3674.0,0.15]
[1736198675877,7.70411826,3674.1,3674.0,0.15]
[1736198676374,8.10684157,3674.1,3674.0,0.15]
[1736198678068,2.38509157,3674.1,3674.0,0.15]
[1736198678241,0.90576143,3674.1,3674.0,0.15]
[1736198680782,0.50303812,3674.1,3674.0,0.15]
[1736198681388,0.25134493,3674.1,3674.0,0.15]
[1736198681560,2.72154,3674.4,3674.0,0.15]
[1736198681763,0.905991,3674.6,3674.0,0.15]
[1736198681962,3.23346387,3674.5,3674.0,0.15]
[1736198682270,0.65420206,3674.3,3674.0,0.15]
[1736198682662,0.25134493,3674.2,3674.0,0.15]
[1736198682862,0.50315414,3674.2,3674.0,0.15]
[1736198685258,8.10289848,3674.1,3674.0,0.15]
[1736198685452,4.30379848,3674.1,3674.0,0.15]
[1736198686562,5.06039848,3674.1,3674.0,0.15]
[1736198686761,5.09442303,3674.1,3674.0,0.15]
[1736198687152,5.06039848,3674.1,3674.0,0.15]
[1736198687989,5.09442302,3674.1,3674.0,0.15]
[1736198688489,8.09442302,3674.1,3674.0,0.15]
[1736198688694,5.22005948,3674.0,3672.6,0.3981]
[1736198688862,5.79399039,3673.1,3672.6,0.3981]
[1736198689079,2.60318136,3672.8,3672.6,0.3981]
[1736198690212,0.25134493,3672.7,3672.6,0.3981]
[1736198692991,0.25134493,3672.7,3672.5,0.192]
[1736198693394,0.25134493,3672.6,3672.5,0.192]
[1736198694877,0.25134493,3672.6,3672.5,0.1995]
[1736198695874,0.25134493,3672.9,3672.6,0.0075]
[1736198696382,0.25134493,3672.8,3672.6,0.0075]
[1736198697085,0.25134493,3672.7,3672.6,0.0075]
[1736198698221,0.25134493,3672.7,3672.6,35.0075]
[1736198701408,0.25134493,3672.7,3672.6,38.68596]
[1736198702132,0.40284061,3673.5,3672.8,0.0075]
[1736198702301,0.40284061,3673.5,3673.0,0.0075]
[1736198702627,0.25183913,3673.4,3673.0,0.0075]
[1736198702836,0.25183913,3673.4,3673.3,35.0075]
[1736198703127,0.90651564,3673.4,3673.3,35.0075]
[1736198703331,0.65467651,3673.4,3673.3,35.0075]
[1736198703633,0.2518359,3673.4,3673.3,35.0075]
[1736198705531,0.2518359,3673.4,3673.3,35.0]
[1736198706233,1.18624185,3673.4,3673.3,35.0]
[1736198706437,3.90851185,3673.4,3673.3,35.0]
[1736198706625,4.1604509,3673.4,3673.3,35.0]
[1736198707227,0.90688514,3673.4,3673.3,35.0]
[1736198710534,3.62915514,3673.4,3673.3,35.0]
[1736198712038,6.66318384,3673.4,3673.3,35.0]
[1736198712342,6.62915514,3673.4,3673.3,35.0]
[1736198713107,7.0490802,3673.4,3673.3,35.0]
[1736198713447,7.60728048,3673.4,3673.3,35.0]
[1736198715343,7.18735542,3673.4,3673.3,35.0]
[1736198717665,3.0,3673.3,3672.7,0.191]
[1736198717972,2.60318136,3673.1,3672.7,0.191]
[1736198718625,0.90688514,3673.0,3672.7,0.191]
[1736198719011,0.25193905,3672.9,3672.7,0.191]
[1736198719213,0.25193905,3672.9,3672.8,35.0]
[1736198720441,0.90838555,3672.9,3672.8,35.0]
[1736198721262,4.40442555,3672.9,3672.8,35.0]
[1736198723353,5.26347928,3672.9,3672.8,35.0]
[1736198724353,8.26347928,3672.9,3672.8,35.0]
[1736198725651,12.45893708,3672.9,3672.8,35.0]
[1736198726315,5.10384335,3672.9,3672.8,35.0]
[1736198726748,3.41165668,3672.9,3672.8,35.0]
[1736198727940,6.41165668,3672.9,3672.8,35.0]
[1736198728141,4.07860583,3672.9,3672.8,35.0]
[1736198729453,1.07860583,3672.9,3672.8,35.0]
[1736198729653,1.07860583,3672.9,3672.8,35.3981]
[1736198732381,1.07860583,3672.9,3672.8,35.4131]
[1736198732583,0.78221906,3672.9,3672.8,38.68581]
[1736198732811,1.12840355,3673.3,3673.2,3.68552]
[1736198732812,3.55e-06,3673.3,3673.2,3.68552]
[1736198732955,2.2e-07,3673.4,3673.3,3.69294]
[1736198733682,2.2e-07,3673.4,3673.3,41.29612136]
[1736198733902,2.2e-07,3673.4,3673.3,38.68544]
[1736198734095,2.2e-07,3674.1,3673.8,2.72194]
[1736198734300,2.2e-07,3674.1,3674.0,0.4056]
[1736198734661,2.2e-07,3674.1,3674.0,35.3981]
[1736198734859,2.2e-07,3674.1,3674.0,35.0]
[1736198735160,2.95077702,3674.1,3674.0,35.0]
[1736198735996,2.9507768,3674.1,3674.0,35.0]
[1736198736487,2.98480015,3674.1,3674.0,35.0]
[1736198737956,3.81170015,3674.1,3674.0,35.0]
[1736198738156,6.81170015,3674.1,3674.0,35.0]
[1736198738396,6.7776768,3674.1,3674.0,35.0]
[1736198738989,6.7776768,3674.1,3673.2,0.191]
[1736198739193,5.32533136,3673.6,3673.2,0.191]
[1736198739399,2.60318136,3673.6,3673.2,0.191]
[1736198740096,5.60318136,3673.6,3673.5,35.0]
[1736198741169,8.32530136,3673.6,3673.5,35.0]
[1736198742875,8.72817023,3673.6,3673.5,35.0]
[1736198743077,6.00605023,3673.6,3673.5,35.0]
[1736198744687,0.65467432,3673.6,3673.5,35.0]
[1736198744900,0.65467432,3673.6,3673.5,35.0075]
[1736198745280,0.40286887,3673.6,3673.5,35.0075]
[1736198745691,1.12855184,3674.1,3673.6,0.0075]
[1736198746080,1.12855184,3674.1,3673.5,35.0]
[1736198746081,0.25180609,3674.0,3673.5,0.0075]
[1736198746317,0.50361514,3674.0,3673.5,0.0075]
[1736198746471,0.50361514,3674.0,3673.9,35.0]
[1736198746873,0.50361514,3674.0,3673.9,35.4056]
[1736198746874,0.25180905,3674.0,3673.9,35.4056]
[1736198747380,0.25180905,3674.0,3673.9,38.685]
[1736198747798,1.12855184,3674.9,3674.7,0.0075]
[1736198747997,1.12855184,3674.9,3674.8,3.31783]
[1736198748197,1.12855184,3674.9,3674.8,3.87533]
[1736198748440,1.12855184,3674.9,3674.8,38.87533]
[1736198750010,0.824,3676.4,3675.1,2.736]
[1736198750191,3.0,3676.1,3675.1,2.736]
[1736198750402,3.0,3676.1,3675.1,0.015]
[1736198750403,2.60318136,3675.9,3675.1,0.015]
[1736198750600,2.60318136,3675.9,3675.8,35.0]
[1736198750812,5.88731998,3675.9,3675.8,35.0]
[1736198751401,6.13834233,3675.9,3675.8,35.0]
[1736198751598,10.21723846,3675.9,3675.8,35.0]
[1736198751920,4.49681846,3675.9,3674.5,0.191]
[1736198752118,2.60318136,3675.1,3674.5,0.191]
[1736198752285,5.32420136,3675.1,3674.5,0.0075]
[1736198752485,5.32420136,3675.1,3674.5,0.1985]
[1736198752850,2.60318136,3675.1,3675.0,35.0]
[1736198753392,3.42848136,3675.1,3675.0,35.0]
[1736198755526,3.0,3675.3,3675.0,35.0]
[1736198756013,3.0,3675.3,3674.5,0.1985]
[1736198756205,5.72089,3675.3,3674.5,0.1985]
[1736198756405,5.72089,3675.3,3675.2,35.0]
[1736198756611,6.63166714,3675.3,3675.2,35.0]
[1736198756819,6.88257406,3675.3,3675.2,35.0]
[1736198757002,7.13346736,3675.3,3675.2,35.0]
[1736198758802,6.88256044,3675.3,3675.2,35.0]
[1736198759005,7.13354824,3675.3,3675.2,35.0]
[1736198759807,7.53521186,3675.3,3675.2,35.0]
[1736198761146,8.36841186,3675.3,3675.2,35.0]
[1736198762502,7.45763472,3675.3,3675.2,35.0]
[1736198762710,3.90354472,3675.3,3675.2,35.0]
[1736198763442,3.5018811,3675.3,3675.2,35.0]
[1736198763627,6.2227411,3675.3,3675.2,35.0]
[1736198763820,3.5018811,3675.3,3675.2,35.0]
[1736198764511,7.21814151,3675.3,3675.2,35.0]
[1736198764707,8.00962935,3675.3,3675.2,35.0]
[1736198764923,7.75873605,3675.3,3675.2,35.0]
[1736198765145,8.41176753,3675.3,3675.2,35.0]
[1736198765632,2.72163,3674.3,3673.8,0.5966]
[1736198765842,2.60318136,3674.2,3673.8,0.5966]
[1736198766020,2.60318136,3674.5,3673.8,0.5966]
[1736198766340,2.60318136,3674.5,3673.9,0.5575]
[1736198766543,2.60318136,3674.5,3674.4,35.0]
[1736198767123,5.72124,3674.8,3674.4,35.0]
[1736198767124,3.0,3674.6,3674.4,35.0]
[1736198767346,3.0,3674.6,3673.9,0.5575]
[1736198767904,3.03401648,3674.6,3674.5,35.0]
[1736198768014,5.75539648,3674.6,3674.5,35.0]
[1736198768216,6.37468145,3674.6,3674.5,35.0]
[1736198768417,7.19678145,3674.6,3674.5,35.0]
[1736198768769,7.44810027,3674.6,3674.5,35.0]
[1736198768914,8.77231484,3674.6,3674.5,35.0]
[1736198769115,2.72228,3673.4,3673.0,0.3981]
[1736198769436,2.72234,3673.3,3673.0,0.0075]
[1736198770150,2.72234,3673.3,3673.2,35.0]
[1736198770954,5.72234,3673.3,3673.2,35.0]
[1736198771114,7.12862019,3673.3,3673.2,35.0]
[1736198771668,7.37969594,3673.3,3673.2,35.0]
[1736198771814,6.62627784,3673.3,3673.2,35.0]
[1736198774023,3.90393784,3673.3,3673.2,35.0]
[1736198774449,3.65286209,3673.3,3673.2,35.0]
[1736198774758,6.37520209,3673.3,3673.2,35.0]
[1736198775573,6.62621213,3673.3,3673.2,35.0]
[1736198776771,7.86833189,3673.3,3673.2,35.0]
[1736198776983,7.46661458,3673.3,3673.2,35.0]
[1736198781963,3.50215482,3673.3,3673.2,35.0]
[1736198782168,3.50215482,3673.3,3673.2,35.3981]
[1736198782539,3.25101004,3673.3,3673.2,35.3981]
[1736198782742,3.0,3673.3,3673.2,35.3981]
[1736198782982,3.0,3673.3,3673.2,35.0]
[1736198784312,3.2508607,3673.3,3673.2,35.0]
[1736198786853,0.2508607,3673.3,3673.2,35.0]
[1736198787022,0.2508607,3673.3,3673.2,35.4056]
[1736198787211,0.03402561,3674.2,3673.2,35.4056]
[1736198787413,1.12855184,3674.4,3673.5,2.72216]
[1736198787622,4.12855184,3674.4,3673.6,0.5891]
[1736198787825,4.12855184,3674.4,3674.3,35.0]
[1736198788048,1.12855184,3674.4,3674.3,35.0]
[1736198788227,1.37969009,3674.4,3674.3,35.3981]
[1736198788559,1.37969009,3674.4,3674.3,38.1197]
[1736198788757,1.37969009,3674.4,3674.3,35.3981]
[1736198788758,1.63091799,3674.4,3674.3,35.3981]
[1736198788923,1.37977974,3674.4,3674.3,38.1272]
[1736198789260,0.2512279,3674.4,3674.3,38.1272]
[1736198789556,1.12855184,3675.5,3674.3,38.1272]
[1736198789557,1.12855184,3675.5,3674.6,0.5575]
[1736198789716,1.12855184,3675.5,3674.8,3.12683]
[1736198790117,0.50260299,3675.4,3674.8,3.12683]
[1736198790630,0.25130231,3675.4,3675.3,35.0]
[1736198791835,0.50243837,3675.4,3675.3,35.0]
[1736198793051,0.25113606,3675.4,3675.3,35.0]
[1736198793257,3.0,3675.6,3675.3,35.0]
[1736198793457,3.03400956,3675.6,3674.8,0.4056]
[1736198793651,3.03400956,3675.6,3674.9,0.191]
[1736198793652,3.0,3675.4,3674.9,0.191]
[1736198793821,3.0,3675.4,3675.3,35.0]
[1736198794158,3.25104452,3675.4,3675.3,35.0]
[1736198794629,0.25104452,3675.4,3675.3,35.0]
[1736198796135,0.2850541,3675.4,3675.3,35.0]
[1736198796318,3.68508523,3675.4,3675.3,35.0]
[1736198796525,3.93603866,3675.4,3675.3,35.0]
[1736198796716,4.75693866,3675.4,3675.3,35.0]
[1736198797131,4.75693866,3675.4,3674.1,0.5534042]
[1736198797366,2.59973658,3674.4,3674.1,0.5534042]
[1736198797653,0.03402177,3674.3,3674.0,0.191]
[1736198798035,3.0,3674.4,3674.0,0.191]
[1736198798216,3.0,3674.4,3674.3,35.0]
[1736198798834,8.82309078,3674.4,3674.3,35.0]
[1736198799434,9.07400972,3674.4,3674.3,35.0]
[1736198799938,9.32491905,3674.4,3674.3,35.0]
[1736198801429,6.72518247,3674.4,3674.3,35.0]
[1736198801625,3.25091894,3674.4,3674.3,35.0]
[1736198801824,0.25091894,3674.4,3674.3,35.0]
[1736198802276,3.0,3674.6,3674.3,35.0]
[1736198802434,3.0,3674.6,3673.8,0.5575]
[1736198802869,0.25093616,3674.5,3673.8,0.5575]
[1736198803071,0.25093616,3674.5,3673.9,0.3981]
[1736198803383,3.0,3674.6,3673.9,0.3981]
[1736198804966,0.67924113,3675.4,3674.0,0.5575]
[1736198804967,2.72105,3675.1,3674.0,0.5575]
[1736198805488,3.25097418,3675.0,3674.0,0.5575]
[1736198805649,6.25706071,3675.0,3674.0,0.5575]
[1736198805851,6.22304561,3675.0,3674.0,0.55]
[1736198806167,2.72139,3674.6,3674.1,0.191]
[1736198806344,3.0,3674.8,3674.1,0.191]
[1736198806568,3.0340178,3674.8,3674.1,0.191]
[1736198806794,0.50195561,3674.7,3674.1,0.191]
[1736198807275,0.25097418,3674.7,3674.1,0.191]
[1736198807478,0.25097418,3674.6,3674.1,0.191]
[1736198807676,2.97241418,3674.6,3674.1,0.191]
[1736198807992,0.25097418,3674.6,3674.1,0.191]
[1736198808278,0.25097418,3674.5,3674.1,0.191]
[1736198808641,0.25097418,3674.6,3674.1,0.191]
[1736198809069,3.0,3674.5,3674.0,0.191]
[1736198809280,2.72153,3674.4,3674.0,0.191]
[1736198809569,2.75563199,3674.3,3674.0,0.191]
[1736198809772,3.00686144,3674.3,3674.0,0.191]
[1736198810275,0.25097418,3674.2,3674.0,0.191]
[1736198810578,0.50220363,3674.2,3674.0,0.191]
[1736198811097,0.25097418,3674.1,3674.0,0.191]
[1736198812157,0.25097418,3674.4,3674.0,0.191]
[1736198812362,0.25134796,3674.3,3674.0,0.191]
[1736198812749,0.25097418,3674.2,3674.0,0.191]
[1736198813581,0.65325152,3674.4,3674.0,0.191]
[1736198813782,0.65325152,3674.4,3674.1,0.3981]
[1736198813943,0.25151369,3674.3,3674.1,0.3981]
[1736198814303,0.25151369,3674.3,3674.2,3.68478]
[1736198814603,4.12855184,3675.3,3674.4,0.3981]
[1736198814797,1.12855184,3675.3,3674.8,0.3981]
[1736198814950,0.25164987,3675.2,3674.9,0.191]
[1736198815149,0.50327874,3675.2,3674.9,0.191]
[1736198815382,0.86974446,3675.2,3674.9,0.191]
[1736198815784,0.25164987,3675.1,3674.9,0.191]
[1736198815981,0.25164987,3675.1,3674.5,0.3981]
[1736198815982,0.90603161,3675.1,3674.5,0.3981]
[1736198816180,0.25164987,3675.0,3674.6,0.191]
[1736198816573,0.90603161,3675.0,3674.6,0.191]
[1736198816958,0.25164987,3674.9,3674.6,0.191]
[1736198817379,0.25164987,3674.8,3674.6,0.191]
[1736198817688,0.90603161,3674.8,3674.6,0.191]
[1736198817992,0.25164987,3674.7,3674.6,0.191]
[1736198818159,0.90603161,3674.7,3674.6,0.191]
[1736198818354,0.90603161,3674.7,3674.3,0.191]
[1736198818560,0.90603161,3674.7,3674.6,35.0]
[1736198820182,3.62734161,3674.7,3674.6,35.0]
[1736198820358,4.25345115,3674.7,3674.6,35.0]
[1736198821383,7.25345115,3674.7,3674.6,35.0]
[1736198821564,8.04295115,3674.7,3674.6,35.0]
[1736198822588,3.0,3674.3,3673.5,0.5891]
[1736198822762,3.034022,3674.3,3673.5,0.5891]
[1736198823149,0.65438174,3674.2,3673.5,0.5891]
[1736198823349,0.90603161,3674.2,3674.1,35.0]
[1736198823652,5.97332987,3674.2,3674.1,35.0]
[1736198824294,6.62914751,3674.2,3674.1,35.0]
[1736198824497,10.1517725,3674.2,3674.1,35.0]
[1736198824690,10.9563725,3674.2,3674.1,35.0]
[1736198828601,11.85757322,3674.2,3674.1,35.0]
[1736198830906,14.33813379,3674.2,3674.1,35.0]
[1736198831202,14.08648392,3674.2,3674.1,35.0]
[1736198831439,14.33857272,3674.2,3674.1,35.0]
[1736198834111,13.21002088,3674.2,3674.1,35.0]
[1736198838054,14.33907685,3674.2,3674.1,35.0]
[1736198838182,2.72214,3673.6,3673.2,0.191]
[1736198838540,3.0,3673.3,3672.8,0.3981]
[1736198838840,2.75645148,3673.2,3672.8,0.3981]
[1736198839138,3.41226912,3673.2,3673.1,35.0]
[1736198839331,0.65581764,3673.2,3673.1,35.0]
[1736198839731,0.90783054,3673.2,3673.1,35.0]
[1736198842180,0.90783054,3673.2,3673.1,35.3981]
[1736198842378,0.90783054,3673.2,3673.1,38.12059]
[1736198842616,1.12905597,3673.8,3673.2,0.3981]
[1736198842821,1.12905597,3673.8,3673.4,0.3981]
[1736198843221,0.90728097,3673.7,3673.4,3.12036]
[1736198843832,3.0,3674.2,3673.6,35.0]
[1736198844240,3.0,3674.2,3673.4,3.12036]
[1736198844453,0.25209193,3674.1,3673.4,3.12036]
[1736198844745,0.90751776,3674.1,3674.0,35.0]
[1736198844947,0.65542583,3674.1,3674.0,35.0]
[1736198845351,0.25208686,3674.1,3674.0,35.0]
[1736198845556,0.50423974,3674.1,3674.0,35.0]
[1736198846035,0.90757871,3674.1,3674.0,35.0]
[1736198847855,8.43523984,3674.1,3674.0,35.0]
[1736198848619,11.03497642,3674.1,3674.0,35.0]
[1736198850023,2.7219,3673.9,3673.1,0.3981]
[1736198850279,2.72236,3673.3,3673.1,0.3981]
[1736198850720,0.2861846,3673.2,3673.1,0.3981]
[1736198850987,0.90899335,3673.2,3673.1,35.3981]
[1736198852462,1.33004259,3673.2,3673.1,35.3981]
[1736198854176,1.33004259,3673.2,3673.1,38.12059]
[1736198854682,0.90899335,3673.2,3673.1,38.12059]
[1736198855058,0.65684047,3673.2,3673.1,38.12059]
[1736198855257,0.25263095,3673.2,3673.1,38.12059]
[1736198856857,0.25263095,3673.2,3673.1,38.67809]
[1736198857998,0.25263095,3673.2,3673.1,35.3981]
[1736198858203,0.50540177,3673.2,3673.1,35.3981]
[1736198858870,0.90980683,3673.2,3673.1,35.3981]
[1736198860204,0.90980683,3673.2,3673.1,35.5931]
[1736198861129,3.63222683,3673.2,3673.1,35.0]
[1736198861328,4.55882606,3673.2,3673.1,35.0]
[1736198862405,4.9798753,3673.2,3673.1,35.0]
[1736198863675,2.2574553,3673.2,3673.1,35.0]
[1736198863880,1.0799905,3673.2,3673.1,35.0]
[1736198864774,1.0799905,3673.2,3673.1,35.3981]
[1736198865633,1.50124415,3673.2,3673.1,35.3981]
[1736198866417,1.50124415,3673.2,3673.1,35.0]
[1736198868917,1.0799905,3673.2,3673.1,35.0]
[1736198870223,0.65703601,3673.2,3673.1,35.0]
[1736198870589,0.90970205,3673.2,3673.1,35.0]
[1736198870923,1.07988572,3673.2,3673.1,35.0]
[1736198871101,1.07988572,3673.2,3673.1,35.196]
[1736198871822,0.90970205,3673.2,3673.1,38.88159]
[1736198871998,0.65703601,3673.2,3673.1,38.88159]
[1736198872416,0.42125365,3673.5,3673.1,38.48349]
[1736198872711,1.12965488,3673.7,3673.6,3.12022]
[1736198873222,1.78639608,3673.7,3673.6,38.12022]
[1736198874242,0.6567412,3673.7,3673.6,38.12022]
[1736198876189,0.6567412,3673.7,3673.6,38.31522]
[1736198876920,0.25259277,3673.7,3673.6,38.31522]
[1736198879291,0.25259277,3673.7,3673.6,35.195]
[1736198879893,0.50489875,3673.7,3673.6,35.195]
[1736198880099,0.90858142,3673.7,3673.6,35.195]
[1736198883424,4.86377831,3673.7,3673.6,35.0]
[1736198883602,10.18556489,3673.7,3673.6,35.0]
[1736198884005,10.77695235,3673.7,3673.6,35.0]
[1736198885209,2.72235,3673.3,3673.0,0.195]
[1736198885440,0.03403139,3673.2,3673.0,0.195]
[1736198885642,2.72235,3673.3,3673.0,0.195]
[1736198885844,2.59973658,3673.4,3673.0,0.195]
[1736198886022,0.25230598,3673.1,3672.7,0.195]
[1736198886542,0.25230598,3673.0,3672.7,0.195]
[1736198886841,0.90858142,3673.0,3672.7,0.195]
[1736198887041,0.65627544,3673.0,3672.7,0.195]
[1736198887244,0.4204717,3673.5,3672.9,35.3981]
[1736198887541,0.4204717,3673.5,3672.9,0.3981]
[1736198887753,4.67271446,3673.5,3672.9,0.3981]
[1736198887905,1.70674377,3673.5,3672.7,0.195]
[1736198888109,6.23109582,3673.4,3672.7,0.195]
[1736198888308,0.03403098,3673.3,3672.7,0.195]
[1736198888530,6.23109582,3673.4,3673.2,35.0]
[1736198888706,1.15594035,3673.3,3673.2,35.0]
[1736198889048,1.81250728,3673.3,3673.2,35.0]
[1736198891753,1.84653791,3673.3,3673.2,35.0]
[1736198892351,1.81250728,3673.3,3673.2,35.0]
[1736198893552,1.84653793,3673.3,3673.2,35.0]
[1736198894050,1.81250728,3673.3,3673.2,35.0]
[1736198895356,4.56887793,3673.3,3673.2,35.0]
[1736198895857,4.53484728,3673.3,3673.2,35.0]
[1736198896849,7.53484728,3673.3,3673.2,35.0]
[1736198899561,4.81250728,3673.3,3673.2,35.0]
[1736198899931,3.90907924,3673.3,3673.2,35.0]
[1736198901561,3.94310976,3673.3,3673.2,35.0]
[1736198904760,6.66544976,3673.3,3673.2,35.0]
[1736198905067,6.63141924,3673.3,3673.2,35.0]
[1736198906380,7.05189094,3673.3,3673.2,35.0]
[1736198906530,8.1301007,3673.3,3673.2,35.0]
[1736198908561,7.709629,3673.3,3673.2,35.0]
[1736198909350,4.987289,3673.3,3673.2,35.0]
[1736198909561,3.90907924,3673.3,3673.2,35.0]
[1736198910760,0.90907924,3673.3,3673.2,35.3981]
[1736198912762,0.90907924,3673.3,3673.2,38.67802]
[1736198913161,0.90907924,3673.3,3673.2,35.3981]
[1736198913322,0.90907924,3673.3,3673.2,35.5911]
[1736198913522,0.65656693,3673.3,3673.2,35.5911]
[1736198914031,0.65656693,3673.3,3673.2,35.193]
[1736198914988,0.90962113,3673.3,3673.2,35.193]
[1736198915467,0.90962113,3673.3,3673.2,35.0]
[1736198918253,1.50152342,3673.3,3673.2,35.0]
[1736198919678,0.2530542,3673.3,3673.2,35.0]
[1736198919840,0.2530542,3673.3,3673.2,35.3981]
[1736198920040,0.2530542,3673.3,3673.2,38.12052]
[1736198920351,1.50277677,3673.3,3673.2,38.12052]
[1736198920763,1.08107645,3673.3,3673.2,38.12052]
[1736198921454,1.08107645,3673.3,3673.2,35.5891]
[1736198926659,1.08107645,3673.3,3673.2,35.191]
[1736198930072,1.50277677,3673.3,3673.2,35.0]
[1736198930505,7.22511677,3673.3,3673.2,35.0]
[1736198930718,8.13651941,3673.3,3673.2,35.0]
[1736198930924,9.57494025,3673.3,3673.2,35.0]
[1736198931061,9.15323993,3673.3,3673.2,35.0]
[1736198931261,5.72242,3673.2,3672.7,0.191]
[1736198931462,2.72249,3673.1,3672.5,1.13839489]
[1736198931702,0.2530542,3673.0,3672.6,0.191]
[1736198932171,0.2530542,3673.0,3672.9,35.0]
[1736198932374,0.67452852,3673.0,3672.9,35.0]
[1736198932902,1.33201332,3673.0,3672.9,35.0]
[1736198933359,2.24341596,3673.0,3672.9,35.0]
[1736198935146,1.82194164,3673.0,3672.9,35.0]
[1736198939160,2.41360427,3673.0,3672.9,35.0]
[1736198940453,1.50220163,3673.0,3672.9,35.0]
[1736198941023,6.25671856,3673.0,3672.9,35.0]
[1736198941659,5.66505593,3673.0,3672.9,35.0]
[1736198943470,9.07518139,3673.0,3672.9,35.0]
[1736198943962,11.79775139,3673.0,3672.9,35.0]
[1736198946038,10.66467661,3673.0,3672.9,35.0]
[1736198946737,5.72267,3672.9,3672.4,0.191]
[1736198947266,0.2530542,3672.8,3672.4,0.191]
[1736198947470,0.28708961,3672.8,3672.4,0.191]
[1736198947674,0.2530542,3672.7,3672.4,0.191]
[1736198947963,0.910539,3672.7,3672.4,0.191]
[1736198948475,0.6574848,3672.7,3672.6,35.0]
[1736198948832,2.63377199,3672.8,3672.6,35.0]
[1736198949033,6.98401042,3672.7,3671.8,0.93310922]
[1736198949238,2.72294,3672.5,3671.8,0.3981]
[1736198949461,2.72294,3672.5,3672.4,35.0]
[1736198950160,0.65666133,3672.5,3672.4,35.0]
[1736198950360,0.90915868,3672.5,3672.4,35.0]
[1736198953985,0.90915868,3672.5,3672.4,38.86961]
[1736198954193,0.90915868,3672.5,3672.4,41.47684658]
[1736198954687,8.68e-06,3672.5,3672.4,44.48434658]
[1736198954887,1.13190511,3672.9,3672.8,3.68581]
[1736198955451,1.13190511,3672.9,3672.8,3.67831]
[1736198955793,1.13190511,3672.9,3672.8,38.67831]
[1736198955964,1.13190511,3672.9,3672.8,38.12831]
[1736198956182,1.13190511,3672.9,3672.8,38.31181]
[1736198956692,3.77,3673.8,3672.8,41.81361111]
[1736198956986,2.72226,3673.5,3672.8,3.89240111]
[1736198957187,5.63376772,3673.4,3672.8,3.49430111]
[1736198957380,5.59973658,3673.4,3673.3,35.0]
[1736198957683,6.55669644,3673.4,3673.3,35.0]
[1736198957887,9.27896644,3673.4,3673.3,35.0]
[1736198958615,3.0,3673.4,3673.3,35.0]
[1736198959389,3.0,3673.4,3671.9,1.70759233]
[1736198959390,6.49316,3672.2,3671.9,1.70759233]
[1736198959691,9.09289658,3672.2,3671.9,1.70759233]
[1736198960282,9.09289658,3672.2,3671.3,0.3981]
[1736198960283,10.27448424,3672.2,3672.1,35.0]
[1736198960683,10.27120754,3672.2,3672.1,35.0]
[1736198961596,10.44146237,3672.2,3672.1,35.0]
[1736198962089,13.83835641,3672.2,3672.1,35.0]
[1736198962515,13.83835641,3672.2,3671.3,0.3981]
[1736198962661,2.72347,3671.8,3671.3,0.3981]
[1736198963492,5.72347,3671.8,3671.7,35.0]
[1736198963905,6.43135342,3671.8,3671.7,35.0]
[1736198964205,7.23185342,3671.8,3671.7,35.0]
[1736198965063,7.6350041,3671.8,3671.7,35.0]
[1736198966261,11.09936439,3671.8,3671.7,35.0]
[1736198966956,11.35104033,3671.8,3671.7,35.0]
[1736198967602,10.47198103,3671.8,3671.7,35.0]
[1736198968861,0.7926,3671.6,3670.6,1.25]
[1736198969062,2.59973658,3670.7,3670.6,1.25]
[1736198969294,5.63379174,3670.7,3670.6,1.25]
[1736198969517,5.59973658,3670.7,3670.6,1.25]
[1736198969830,6.25456073,3670.7,3670.6,36.25]
[1736198971099,5.85141005,3670.7,3670.6,36.25]
[1736198971710,0.25167347,3670.7,3670.6,36.25]
[1736198971888,0.25167347,3670.7,3670.6,39.37245]
[1736198972503,1.13073277,3671.6,3670.9,2.7241]
[1736198972684,1.13073277,3671.6,3671.0,0.3981]